bitfinex/quotes_BTCUSD_20251224
["timestamp","ask_amount","ask_price","bid_price","bid_amount"]
[1766591882766,0.01156,87004.0,86990.0,0.02305557]
[1766591883040,0.00055,86995.0,86992.0,0.0114953]
[1766591883244,0.21152284,87003.0,86991.0,0.06897263]
[1766591883460,0.21152284,87003.0,86993.0,0.01149517]
[1766591883630,0.20002899,87003.0,86993.0,0.01149517]
[1766591883808,0.26899252,87003.0,86991.0,0.06897263]
[1766591884013,0.26784353,87003.0,86992.0,0.0114953]
[1766591884215,0.26784417,87002.0,86990.0,0.07473619]
[1766591884414,0.19888,87002.0,86992.0,0.0114953]
[1766591884616,0.19888,87002.0,86992.0,0.06897175]
[1766591884814,0.19888,87002.0,86993.0,0.01149517]
[1766591885421,0.19888,87002.0,86992.0,0.0114953]
[1766591886221,0.19888,87002.0,86991.0,0.06897253]
[1766591886426,0.19888,87002.0,86991.0,0.01149544]
[1766591886752,0.01149412,87001.0,86991.0,0.01149544]
[1766591886957,0.19888,87002.0,86992.0,0.0114953]
[1766591887136,0.19888,87002.0,86991.0,0.06897256]
[1766591887304,0.21037398,87002.0,86991.0,0.06897256]
[1766591887506,0.21037398,87002.0,86992.0,0.0114953]
[1766591887910,0.19888,87002.0,86994.0,0.01149504]
[1766591888144,0.19888,87002.0,86993.0,0.06897088]
[1766591888383,0.19888,87002.0,86994.0,0.01149504]
[1766591889472,0.000549,86994.0,86990.0,0.00576303]
[1766591889887,0.01149425,87000.0,86990.0,0.00576303]
[1766591890061,0.06896737,86998.0,86990.0,0.00521303]
[1766591890258,0.01156,86997.0,86988.0,0.01149583]
[1766591890457,0.01156,86997.0,86989.0,0.0114957]
[1766591890780,0.01156,86997.0,86988.0,0.01149583]
[1766591891086,0.01156,86997.0,86987.0,0.01149597]
[1766591891445,0.02305464,86997.0,86986.0,0.01156]
[1766591891668,0.02305464,86997.0,86986.0,0.08053653]
[1766591891874,0.19888,86990.0,86973.0,0.35634]
[1766591892033,0.01149649,86983.0,86974.0,0.01156]
[1766591892436,0.01149676,86981.0,86974.0,0.01156]
[1766591892646,0.06897911,86983.0,86974.0,0.01156]
[1766591892647,0.26785911,86983.0,86974.0,0.01156]
[1766591893084,0.05748381,86981.0,86974.0,0.01156]
[1766591893266,0.06898057,86981.0,86974.0,0.01156]
[1766591893894,0.01149689,86980.0,86974.0,0.01156]
[1766591894295,0.06898057,86981.0,86974.0,0.01156]
[1766591894470,0.01149689,86980.0,86974.0,0.01156]
[1766591894887,0.06898197,86980.0,86974.0,0.01156]
[1766591895112,0.01149676,86981.0,86974.0,0.01156]
[1766591895314,0.26785909,86983.0,86974.0,0.01156]
[1766591895518,0.19888,86983.0,86975.0,0.0574876]
[1766591895845,0.19888,86983.0,86975.0,0.06898515]
[1766591896080,0.19888,86983.0,86976.0,0.01149742]
[1766591896326,0.19888,86983.0,86977.0,0.01149729]
[1766591896526,0.19888,86983.0,86974.0,0.00576303]
[1766591896735,0.19888,86983.0,86974.0,0.01726071]
[1766591897123,0.01149663,86982.0,86974.0,0.00576303]
[1766591897314,0.19888,86983.0,86974.0,0.00576303]
[1766591897524,0.26785917,86983.0,86974.0,0.00576303]
[1766591897728,0.19888,86983.0,86974.0,0.00576303]
[1766591898546,0.21037649,86983.0,86974.0,0.00576303]
[1766591898996,0.19888,86983.0,86974.0,0.01726071]
[1766591899359,0.19888,86983.0,86976.0,0.01149742]
[1766591899586,0.19888,86983.0,86975.0,0.01149755]
[1766591899782,0.19888,86983.0,86975.0,0.06898515]
[1766591899986,0.19888,86983.0,86975.0,0.01149755]
[1766591900239,0.19888,86983.0,86974.0,0.01726071]
[1766591900609,0.19888,86983.0,86976.0,0.01149742]
[1766591900982,0.01149729,86977.0,86965.0,0.02305887]
[1766591901190,0.01149676,86981.0,86971.0,0.01149808]
[1766591901385,0.01149716,86978.0,86966.0,0.21933874]
[1766591901710,0.19888,86978.0,86968.0,0.06899083]
[1766591901922,0.19888,86978.0,86969.0,0.01149834]
[1766591902126,0.19888,86978.0,86970.0,0.05749101]
[1766591902327,0.19888,86978.0,86974.0,0.01149768]
[1766591902956,0.19888,86978.0,86975.0,0.01149755]
[1766591903091,0.19888,86978.0,86977.0,0.05748646]
[1766591903508,0.01156,86981.0,86977.0,0.01149729]
[1766591903713,0.01156,86987.0,86986.0,0.0114961]
[1766591903944,0.01156,86989.0,86983.0,0.06897894]
[1766591904145,0.01156,86989.0,86984.0,0.01149636]
[1766591904583,0.01156,86989.0,86983.0,0.0689787]
[1766591904775,0.01156,86989.0,86984.0,0.05748163]
[1766591904984,0.01156,86989.0,86985.0,0.01149623]
[1766591905534,0.01156,86989.0,86984.0,0.06897799]
[1766591905737,0.01156,86989.0,86980.0,0.01149689]
[1766591905738,0.01156,86989.0,86981.0,0.01149676]
[1766591906153,0.01156,86989.0,86982.0,0.01149663]
[1766591906394,0.01156,86989.0,86983.0,0.01149649]
[1766591906609,0.01156,86989.0,86982.0,0.01149663]
[1766591906826,0.19888,87000.0,86986.0,0.0114961]
[1766591907032,0.03634174,86999.0,86988.0,0.01149583]
[1766591907266,0.01149451,86998.0,86988.0,0.01149583]
[1766591907472,0.01156,86998.0,86989.0,0.0114957]
[1766591907894,0.01156,86998.0,86988.0,0.01149583]
[1766591908101,0.02305451,86998.0,86987.0,0.27681524]
[1766591908305,0.02305451,86998.0,86988.0,0.01149583]
[1766591908526,0.01156,86998.0,86989.0,0.0114957]
[1766591908944,0.01156,86998.0,86990.0,0.01149557]
[1766591909357,0.01156,86998.0,86988.0,0.20166]
[1766591909569,0.01156,86998.0,86993.0,0.01149517]
[1766591910318,0.09374741,87004.0,86993.0,0.01149517]
[1766591910319,0.01149385,87003.0,86993.0,0.01149517]
[1766591910522,0.02478486,87004.0,86995.0,0.01149491]
[1766591910721,0.01156,87003.0,86994.0,0.20166]
[1766591910912,0.01149425,87000.0,86988.0,0.01156]
[1766591911130,0.02305398,87002.0,86991.0,0.01149544]
[1766591911542,0.01156,87002.0,86992.0,0.0114953]
[1766591911949,0.01156,87002.0,86993.0,0.01149517]
[1766591912353,0.02305398,87002.0,86992.0,0.0114953]
[1766591912777,0.08052423,87002.0,86991.0,0.01149544]
[1766591913112,0.01149412,87001.0,86991.0,0.01149544]
[1766591913313,0.01156,87002.0,86992.0,0.05747594]
[1766591913518,0.01156,87002.0,86993.0,0.01149517]
[1766591913719,0.01156,87002.0,86994.0,0.01149504]
[1766591913993,0.000549,86994.0,86989.0,0.20166]
[1766591914192,0.08052401,87002.0,86990.0,0.06897289]
[1766591914372,0.02305398,87002.0,86992.0,0.0114953]
[1766591914997,0.02305398,87002.0,86991.0,0.0689725]
[1766591915149,0.02305398,87002.0,86992.0,0.0114953]
[1766591915343,0.02305398,87002.0,86991.0,0.06897241]
[1766591915547,0.02305398,87002.0,86992.0,0.0114953]
[1766591915882,0.02305398,87002.0,86991.0,0.06897241]
[1766591916046,0.02305398,87002.0,86992.0,0.0114953]
[1766591916247,0.01156,87002.0,86993.0,0.01149517]
[1766591916447,0.01156,87002.0,86992.0,0.06897175]
[1766591916868,0.01156,87002.0,86993.0,0.01149517]
[1766591917073,0.01156,87002.0,86993.0,0.06897062]
[1766591917407,0.01156,87002.0,86995.0,0.01149491]
[1766591917635,0.01156,87002.0,86994.0,0.06897012]
[1766591917834,0.01156,87002.0,86995.0,0.01149491]
[1766591917987,0.01156,87002.0,86994.0,0.06897012]
[1766591918319,0.01156,87002.0,86994.0,0.01149504]
[1766591918473,0.01156,87002.0,86995.0,0.01149491]
[1766591918685,0.000549,86995.0,86992.0,0.0114953]
[1766591919114,0.19498,87003.0,86992.0,0.0114953]
[1766591919308,0.19498,87003.0,86996.0,0.05747374]
[1766591919532,0.19498,87003.0,86996.0,0.01149478]
[1766591919733,0.19498,87003.0,86995.0,0.01149491]
[1766591919911,0.19498,87003.0,86993.0,0.01149517]
[1766591920115,0.01149398,87002.0,86992.0,0.06897177]
[1766591920463,0.19533438,87002.0,86992.0,0.0114953]
[1766591920822,0.01149412,87001.0,86991.0,0.01149544]
[1766591921139,0.26429892,87002.0,86992.0,0.0114953]
[1766591921347,0.01149464,86997.0,86983.0,0.01149649]
[1766591921528,0.01149438,86999.0,86979.0,0.22994]
[1766591921529,0.18474,86992.0,86986.0,0.0114961]
[1766591921999,0.18419,86992.0,86986.0,0.0114961]
[1766591922332,0.18419,86992.0,86987.0,0.01149597]
[1766591922544,0.18419,86992.0,86988.0,0.02305583]
[1766591922774,0.18419,86998.0,86990.0,0.01149557]
[1766591923116,0.01156,86997.0,86994.0,0.06897001]
[1766591923446,0.01156,86997.0,86994.0,0.01149504]
[1766591923651,0.00055,86994.0,86986.0,0.0114961]
[1766591923910,0.00055,86994.0,86988.0,0.01149583]
[1766591924071,0.19575,86996.0,86988.0,0.01149583]
[1766591926031,0.00055,86988.0,86985.0,0.00011]
[1766591926229,0.18419,86990.0,86981.0,0.01149676]
[1766591926457,0.18419,86990.0,86983.0,0.01149649]
[1766591926656,0.18419,86990.0,86982.0,0.06897953]
[1766591926862,0.18419,86990.0,86983.0,0.06897895]
[1766591927020,0.18419,86990.0,86980.0,0.01149689]
[1766591927220,0.18419,86990.0,86981.0,0.01149676]
[1766591927543,0.18419,86990.0,86982.0,0.01149663]
[1766591927705,0.1956857,86989.0,86979.0,0.02305702]
[1766591927914,0.18419,86987.0,86979.0,0.01156]
[1766591928577,0.18419,86987.0,86980.0,0.01149689]
[1766591928950,0.18419,86987.0,86981.0,0.01149676]
[1766591929504,0.18419,86987.0,86980.0,0.06898106]
[1766591929627,0.18419,86987.0,86981.0,0.01149676]
[1766591930662,0.18419,86987.0,86979.0,0.02305702]
[1766591930986,0.19568597,86987.0,86976.0,0.01149742]
[1766591931122,0.18419,86985.0,86976.0,0.01149742]
[1766591931327,0.18419,86985.0,86977.0,0.01149729]
[1766591931527,0.18419,86985.0,86979.0,0.01149702]
[1766591931727,0.18419,86985.0,86978.0,0.05748577]
[1766591932386,0.18419,86985.0,86978.0,0.0689829]
[1766591932764,0.18419,86985.0,86978.0,0.01149716]
[1766591932963,0.18419,86985.0,86978.0,0.06898275]
[1766591933386,0.18419,86985.0,86979.0,0.06898205]
[1766591933585,0.18419,86985.0,86980.0,0.06898131]
[1766591934110,0.01149372,87004.0,86982.0,0.01149663]
[1766591934313,0.01149372,87004.0,86980.0,0.01149689]
[1766591934314,0.02482456,87007.0,87002.0,0.01149398]
[1766591934515,0.01167,87005.0,87002.0,0.000549]
[1766591934731,0.01167,87005.0,87002.0,0.01149398]
[1766591934936,0.01167,87005.0,87002.0,0.05746974]
[1766591935076,0.01167,87005.0,87001.0,0.03442588]
[1766591935412,0.011121,87005.0,87001.0,0.05747026]
[1766591935618,0.011121,87005.0,87001.0,0.01149412]
[1766591936320,0.011121,87005.0,87000.0,0.01149425]
[1766591936522,0.011121,87005.0,86999.0,0.06896628]
[1766591937587,0.011121,87005.0,86999.0,0.06896573]
[1766591937947,0.011121,87005.0,87001.0,0.06896471]
[1766591939304,0.011121,87005.0,87002.0,0.01149398]
[1766591939640,0.011121,87005.0,87001.0,0.06896471]
[1766591940206,0.01156,87004.0,87002.0,0.06896379]
[1766591940403,0.18664,87012.0,87007.0,0.00579332]
[1766591940651,0.00011,87015.0,87011.0,0.01149279]
[1766591940944,0.00011,87015.0,87013.0,0.05746219]
[1766591941246,0.00011,87015.0,87012.0,0.06895478]
[1766591941446,0.00011,87015.0,87011.0,0.06895548]
[1766591941627,0.00011,87015.0,87010.0,0.06895745]
[1766591942407,0.00011,87015.0,87010.0,0.01149293]
[1766591942787,0.00011,87015.0,87012.0,0.01149266]
[1766591942928,0.00011,87015.0,87011.0,0.06895671]
[1766591943133,0.00011,87015.0,87011.0,0.01149279]
[1766591943334,0.00011,87015.0,87010.0,0.06895756]
[1766591943760,0.00011,87015.0,87011.0,0.01149279]
[1766591944155,0.00011,87015.0,87010.0,0.06895756]
[1766591944156,0.00011,87015.0,87009.0,0.06895818]
[1766591944674,0.00011,87015.0,87010.0,0.01149293]
[1766591944827,0.00011,87015.0,87010.0,0.06895703]
[1766591945645,0.00011,87015.0,87011.0,0.01149279]
[1766591946494,0.00011,87015.0,87010.0,0.01149293]
[1766591946636,0.00011,87015.0,87011.0,0.01149279]
[1766591946829,0.00011,87015.0,87010.0,0.06895707]
[1766591947036,0.00011,87015.0,87011.0,0.01149279]
[1766591947234,0.00011,87015.0,87010.0,0.01149293]
[1766591948047,0.00011,87015.0,87011.0,0.01149279]
[1766591948271,0.26678767,87133.0,87015.0,0.00011]
[1766591948272,0.13901555,87028.0,87015.0,0.00011]
[1766591948477,0.13901555,87028.0,87012.0,0.17928]
[1766591948478,0.18664,87023.0,87014.0,0.0114924]
[1766591948652,0.18778899,87022.0,87015.0,0.01149227]
[1766591948873,0.18778899,87022.0,87011.0,0.01149279]
[1766591948874,0.18664,87021.0,87011.0,0.01149279]
[1766591949097,0.18664,87019.0,87011.0,0.01149279]
[1766591949304,0.00114899,87018.0,87013.0,0.01149253]
[1766591949503,0.18664,87019.0,87013.0,0.06895518]
[1766591951357,0.00114899,87018.0,87010.0,0.01149293]
[1766591951787,0.00114899,87018.0,87011.0,0.06895667]
[1766591951950,0.18664,87019.0,87011.0,0.06895667]
[1766591952154,0.18664,87019.0,87012.0,0.01149266]
[1766591952313,0.18664,87019.0,87009.0,0.06895833]
[1766591952518,0.18778899,87019.0,87010.0,0.06895706]
[1766591952828,0.18778899,87019.0,87010.0,0.01149293]
[1766591953016,0.18778899,87019.0,87011.0,0.01149279]
[1766591953214,0.18664,87019.0,87011.0,0.01149279]
[1766591954278,0.18664,87019.0,87011.0,0.06895666]
[1766591954476,0.18664,87019.0,87012.0,0.01149266]
[1766591955543,9.778e-05,87028.0,87022.0,0.01149134]
[1766591955790,0.02756656,87041.0,87035.0,0.05744812]
[1766591955942,0.00017518,87037.0,87036.0,0.05744749]
[1766591956148,0.341332,87049.0,87039.0,0.06893441]
[1766591956347,0.246439,87048.0,87040.0,0.01148897]
[1766591956556,0.22982704,87047.0,87033.0,0.05744947]
[1766591956896,0.00011,87040.0,87032.0,0.17928]
[1766591957282,0.06893309,87041.0,87032.0,0.17928]
[1766591957431,0.06893163,87043.0,87032.0,0.17928]
[1766591957635,0.201703,87044.0,87036.0,0.05744725]
[1766591957848,0.08499747,87062.0,87048.0,0.05743949]
[1766591958044,0.00017518,87056.0,87053.0,0.06892325]
[1766591958252,0.00011,87053.0,87050.0,0.06892556]
[1766591958447,0.00017518,87056.0,87048.0,0.01148791]
[1766591958652,0.00017518,87056.0,87047.0,0.01148804]
[1766591958857,0.01148712,87054.0,87046.0,0.17928]
[1766591959068,0.00011,87046.0,87045.0,0.01152]
[1766591959273,0.00011,87046.0,87045.0,0.01097]
[1766591959508,0.05743895,87049.0,87043.0,0.01152]
[1766591959706,0.19812791,87048.0,87039.0,0.01152]
[1766591959868,0.18664,87048.0,87039.0,0.01152]
[1766591960090,0.18664,87048.0,87041.0,0.01148883]
[1766591960492,0.06892513,87051.0,87040.0,0.06893381]
[1766591960694,0.01148751,87051.0,87042.0,0.0114887]
[1766591960913,0.01148751,87051.0,87041.0,0.01148883]
[1766591961091,0.05743891,87049.0,87039.0,0.01152]
[1766591961291,0.06892752,87048.0,87039.0,0.01152]
[1766591961492,0.01148765,87050.0,87039.0,0.0230091]
[1766591961697,0.01148765,87050.0,87040.0,0.01148897]
[1766591961915,0.01148778,87049.0,87039.0,0.0230091]
[1766591962094,0.01148778,87049.0,87039.0,0.06896549]
[1766591962309,0.06892557,87051.0,87040.0,0.06893364]
[1766591962636,0.01148778,87049.0,87039.0,0.01152]
[1766591962945,0.01148791,87048.0,87039.0,0.01152]
[1766591963760,0.01148778,87049.0,87040.0,0.01148897]
[1766591964153,0.01148765,87050.0,87039.0,0.01152]
[1766591964377,0.01148791,87048.0,87039.0,0.01152]
[1766591964579,0.01148804,87047.0,87039.0,0.01152]
[1766591964910,0.01148765,87050.0,87039.0,0.01152]
[1766591964911,0.06892711,87049.0,87039.0,0.01152]
[1766591965108,0.01148778,87049.0,87039.0,0.01152]
[1766591965333,0.18664,87051.0,87040.0,0.01148897]
[1766591965536,0.05743827,87050.0,87039.0,0.0230091]
[1766591965743,0.00011,87039.0,87036.0,0.01152]
[1766591966150,0.00114899,87046.0,87036.0,0.01152]
[1766591966151,0.01148857,87043.0,87036.0,0.01152]
[1766591966356,0.01148844,87044.0,87036.0,0.01152]
[1766591966774,0.0689302,87045.0,87036.0,0.01152]
[1766591966998,0.11291804,87047.0,87036.0,0.02300949]
[1766591967198,0.01148831,87045.0,87036.0,0.01152]
[1766591967375,0.10143,87047.0,87036.0,0.02300949]
[1766591967576,0.10143,87047.0,87039.0,0.0114891]
[1766591967780,0.10143,87047.0,87039.0,0.06893453]
[1766591967956,0.10143,87047.0,87037.0,0.01148936]
[1766591968139,0.10143,87047.0,87038.0,0.06893539]
[1766591968324,0.100881,87047.0,87040.0,0.01148897]
[1766591968722,0.100881,87047.0,87038.0,0.01148923]
[1766591968723,0.112401,87047.0,87039.0,0.0114891]
[1766591969759,0.112401,87047.0,87040.0,0.01148897]
[1766591970168,0.112401,87047.0,87042.0,0.0114887]
[1766591970411,0.112401,87047.0,87040.0,0.06893253]
[1766591970608,0.112401,87047.0,87040.0,0.01148897]
[1766591971630,0.112401,87047.0,87041.0,0.01148883]
[1766591971809,0.112401,87047.0,87039.0,0.0114891]
[1766591972335,0.112401,87047.0,87040.0,0.01148897]
[1766591972879,0.112401,87047.0,87039.0,0.0114891]
[1766591973179,0.01148844,87044.0,87036.0,0.01152]
[1766591973403,0.1093,87045.0,87038.0,0.01148923]
[1766591973597,0.1093,87045.0,87037.0,0.01148936]
[1766591974403,0.1093,87045.0,87038.0,0.01148923]
[1766591975080,0.01152,87047.0,87041.0,0.01148883]
[1766591975289,0.03908656,87048.0,87039.0,0.0114891]
[1766591975533,0.01152,87048.0,87040.0,0.06893366]
[1766591975731,0.01152,87048.0,87041.0,0.01148883]
[1766591976049,0.01152,87048.0,87041.0,0.06893292]
[1766591976286,0.01152,87048.0,87045.0,0.01148831]
[1766591976395,0.00017518,87056.0,87049.0,0.20116]
[1766591976600,0.01152,87055.0,87050.0,0.21264765]
[1766591976953,0.01152,87055.0,87046.0,0.06892901]
[1766591977296,0.01152,87055.0,87048.0,0.01148791]
[1766591977551,0.01152,87055.0,87047.0,0.06892798]
[1766591977754,0.01152,87055.0,87046.0,0.06892901]
[1766591978397,0.01152,87055.0,87048.0,0.01148791]
[1766591978602,0.01152,87055.0,87047.0,0.21264804]
[1766591979003,0.00979943,87065.0,87055.0,0.20116]
[1766591979197,0.01148514,87069.0,87063.0,0.01148593]
[1766591979198,0.01152,87069.0,87063.0,0.01148593]
[1766591979339,0.01152,87069.0,87067.0,0.05742682]
[1766591979549,0.10239,87077.0,87069.0,0.01148514]
[1766591979743,0.10239,87077.0,87063.0,0.236021]
[1766591979744,0.11387408,87077.0,87065.0,0.01148567]
[1766591979949,0.01148448,87074.0,87063.0,0.00630414]
[1766591980148,0.00103382,87063.0,87058.0,0.01148659]
[1766591980360,0.01152,87069.0,87060.0,0.01148633]
[1766591980567,0.01162633,87069.0,87060.0,0.01148633]
[1766591980981,0.02311147,87069.0,87059.0,0.01148646]
[1766591981177,0.01162633,87069.0,87060.0,0.01148633]
[1766591981403,0.01162633,87069.0,87061.0,0.06891687]
[1766591981578,0.01162633,87069.0,87062.0,0.01148606]
[1766591981984,0.01162633,87069.0,87055.0,0.01148699]
[1766591982182,0.01162633,87069.0,87063.0,0.01148593]
[1766591982410,0.01162633,87069.0,87062.0,0.01148606]
[1766591983348,0.01162633,87069.0,87063.0,0.01127176]
[1766591983542,0.01162633,87069.0,87060.0,0.01148633]
[1766591983721,0.000484,87063.0,87060.0,0.01148633]
[1766591983927,0.01162633,87069.0,87061.0,0.01148619]
[1766591984271,0.01162633,87069.0,87058.0,0.01148659]
[1766591984481,0.01162633,87069.0,87060.0,0.01148633]
[1766591984658,0.01162633,87069.0,87061.0,0.01148619]
[1766591984885,0.01162633,87069.0,87060.0,0.01148633]
[1766591985224,0.01162633,87069.0,87059.0,0.06891855]
[1766591986030,0.01162633,87069.0,87060.0,0.05743141]
[1766591986263,0.01162633,87069.0,87060.0,0.01148633]
[1766591986466,0.00553279,87069.0,87065.0,0.01148567]
[1766591986641,0.01152,87076.0,87067.0,0.0114854]
[1766591986890,0.01152,87076.0,87073.0,0.01148461]
[1766591987092,0.01152,87076.0,87073.0,0.06890747]
[1766591987295,0.000549,87073.0,87071.0,0.06890912]
[1766591987649,0.01152,87076.0,87071.0,0.06890912]
[1766591987650,0.01152,87076.0,87071.0,0.05742427]
[1766591987907,0.01152,87076.0,87071.0,0.19739488]
[1766591988111,0.00028625,87082.0,87074.0,0.18591]
[1766591988422,0.00028625,87082.0,87079.0,0.01148382]
[1766591988621,0.0002,87083.0,87081.0,0.0574178]
[1766591988907,0.0002,87083.0,87080.0,0.06890157]
[1766591989059,0.0002,87083.0,87080.0,0.01148369]
[1766591989264,0.0002,87083.0,87078.0,0.01148395]
[1766591989693,0.0002,87083.0,87079.0,0.01148382]
[1766591989886,0.0002,87083.0,87079.0,0.18591]
[1766591990315,0.0002,87083.0,87075.0,0.19739435]
[1766591990508,0.06909979,87083.0,87075.0,0.18591]
[1766591990813,0.06909979,87083.0,87050.0,0.39664068]
[1766591990814,0.16021353,87079.0,87070.0,0.01152]
[1766591990993,0.10279382,87079.0,87070.0,0.01152]
[1766591991191,0.01148408,87077.0,87070.0,0.01152]
[1766591991892,0.01148422,87076.0,87069.0,0.01152]
[1766591992055,0.06890373,87078.0,87069.0,0.01152]
[1766591992508,0.14872922,87079.0,87069.0,0.02300514]
[1766591992509,0.10279382,87079.0,87069.0,0.02300514]
[1766591992813,0.09131,87079.0,87070.0,0.01148501]
[1766591993788,0.01148408,87077.0,87069.0,0.01152]
[1766591993987,0.09131,87079.0,87070.0,0.01148501]
[1766591994192,0.09131,87079.0,87071.0,0.01148488]
[1766591994427,0.09131,87079.0,87069.0,0.02300514]
[1766591994667,0.16021327,87079.0,87069.0,0.01152]
[1766591995099,0.01148435,87075.0,87069.0,0.01152]
[1766591995399,0.05742569,87070.0,87058.0,0.01148659]
[1766591995597,0.02756656,87078.0,87064.0,0.01152]
[1766591995598,0.05742176,87075.0,87064.0,0.01152]
[1766591995799,0.01148461,87073.0,87064.0,0.01152]
[1766591995998,0.05742259,87074.0,87064.0,0.01152]
[1766591996200,0.01148461,87073.0,87064.0,0.01152]
[1766591996509,0.08539,87076.0,87068.0,0.01148527]
[1766591997160,0.08539,87076.0,87067.0,0.06891243]
[1766591997338,0.08539,87076.0,87068.0,0.01148527]
[1766591997518,0.01148448,87074.0,87064.0,0.08043448]
[1766591997724,0.01148448,87074.0,87064.0,0.0230058]
[1766591998597,0.01148448,87074.0,87064.0,0.2061158]
[1766591998818,0.06890629,87075.0,87064.0,0.2061158]
[1766591999028,0.01148448,87074.0,87065.0,0.01148567]
[1766591999232,0.05742234,87075.0,87064.0,0.2061158]
[1766591999475,0.0689072,87074.0,87064.0,0.2061158]
[1766591999652,0.06890803,87073.0,87064.0,0.19463]
[1766592000773,0.08539,87076.0,87064.0,0.19463]
[1766592000977,0.02756656,87189.0,87064.0,0.19463]
[1766592001185,0.26773912,87172.0,87064.0,0.19463]
[1766592001339,0.07984,87081.0,87064.0,0.19463]
[1766592003457,0.05742116,87076.0,87066.0,0.01148553]
[1766592003689,0.06890535,87076.0,87065.0,0.19459567]
[1766592003937,0.07664,87078.0,87030.0,0.39664068]
[1766592004166,0.18989659,87058.0,87045.0,0.01162633]
[1766592004442,0.18989593,87063.0,87046.0,0.24055035]
[1766592004639,0.17841,87063.0,87060.0,0.01148633]
[1766592004834,0.01152,87067.0,87064.0,0.05742842]
[1766592004975,0.01152,87068.0,87064.0,0.05742847]
[1766592005179,0.0002,87115.0,87070.0,0.18311]
[1766592005180,0.05741754,87082.0,87070.0,0.18311]
[1766592005509,0.01152,87081.0,87071.0,0.01148488]
[1766592005720,0.01148369,87080.0,87070.0,0.18311]
[1766592005920,0.01152,87081.0,87070.0,0.18311]
[1766592006255,0.01152,87082.0,87081.0,0.000549]
[1766592006389,0.01152,87082.0,87076.0,0.01148422]
[1766592006594,0.01152,87082.0,87072.0,0.05742246]
[1766592006595,0.03905394,87052.0,87007.0,0.34479696]
[1766592006803,0.18989844,87044.0,87028.0,0.01149015]
[1766592007041,0.01152,87043.0,87034.0,0.01148976]
[1766592007354,0.05752,87042.0,87033.0,0.18311]
[1766592007492,0.05752,87042.0,87034.0,0.00010633]
[1766592008052,0.0690087,87042.0,87034.0,0.00010633]
[1766592008409,0.12645237,87042.0,87034.0,0.00010633]
[1766592008607,0.01148883,87041.0,87034.0,0.00010633]
[1766592008857,0.01148897,87040.0,87034.0,0.00010633]
[1766592009027,0.01148936,87037.0,87034.0,0.00010633]
[1766592009242,0.0689362,87037.0,87034.0,3.3e-07]
[1766592009473,0.06900749,87036.0,87034.0,3.3e-07]
[1766592009642,0.011455,87036.0,87034.0,3.3e-07]
[1766592010365,5e-06,87036.0,87034.0,3.3e-07]
[1766592010509,0.00825189,87035.0,87034.0,3.3e-07]
[1766592010718,1.89e-06,87035.0,87034.0,3.3e-07]
[1766592013360,0.06893572,87038.0,87034.0,3.3e-07]
[1766592013674,0.01156,87035.0,87034.0,3.3e-07]
[1766592013836,0.01152,87035.0,87034.0,3.3e-07]
[1766592014444,0.05744761,87036.0,87034.0,3.3e-07]
[1766592014643,0.01149042,87029.0,87019.0,0.18311]
[1766592014843,0.17841,87024.0,87013.0,0.01149253]
[1766592015207,0.01152,87023.0,87019.0,0.01149174]
[1766592015412,0.06404987,87047.0,87021.0,0.01149147]
[1766592015543,0.02756656,87038.0,87029.0,0.01149042]
[1766592015746,0.01156,87037.0,87027.0,0.06894369]
[1766592016152,0.02304949,87036.0,87017.0,0.011492]
[1766592016355,0.01148976,87034.0,87023.0,0.19460121]
[1766592016557,0.01148976,87034.0,87023.0,0.18311]
[1766592016794,0.01149029,87030.0,87023.0,0.182561]
[1766592017009,0.01156,87029.0,87020.0,0.01149161]
[1766592017192,0.01156,87029.0,87016.0,0.18311]
[1766592017193,0.02305042,87029.0,87016.0,0.18311]
[1766592017504,0.01156,87029.0,87019.0,0.01149174]
[1766592018212,0.02305042,87029.0,87018.0,0.01149187]
[1766592018457,0.01156,87029.0,87017.0,0.011492]
[1766592018590,0.02305042,87029.0,87018.0,0.01149187]
[1766592018802,0.01156,87029.0,87018.0,0.01149187]
[1766592019002,0.02305042,87029.0,87017.0,0.194602]
[1766592019259,0.01156,87029.0,87018.0,0.01149187]
[1766592019406,0.02305042,87029.0,87018.0,0.01149187]
[1766592019846,0.06894675,87024.0,87017.0,0.18311]
[1766592020048,0.02305121,87023.0,87013.0,9.778e-05]
[1766592020250,0.17841,87044.0,87029.0,0.01149042]
[1766592020474,0.17841,87044.0,87031.0,0.01149015]
[1766592020628,0.0114887,87042.0,87023.0,0.183659]
[1766592020829,0.0114887,87042.0,87030.0,0.01149029]
[1766592021084,0.17841,87042.0,87023.0,0.18311]
[1766592021230,0.05744624,87038.0,87023.0,0.18311]
[1766592021433,0.05744815,87035.0,87032.0,0.00011]
[1766592021633,0.01148976,87034.0,87023.0,0.18311]
[1766592021881,0.05744979,87033.0,87023.0,0.18311]
[1766592022237,0.01148989,87033.0,87023.0,0.18311]
[1766592022468,0.01149002,87032.0,87023.0,0.18311]
[1766592022645,0.06893953,87033.0,87023.0,0.18311]
[1766592022852,0.01148989,87033.0,87023.0,0.18311]
[1766592023282,0.02304976,87034.0,87023.0,0.19460121]
[1766592023534,0.01148804,87047.0,87031.0,0.01149015]
[1766592023805,0.17841,87048.0,87029.0,0.19460042]
[1766592023806,0.04596,87036.0,87029.0,0.19460042]
[1766592024016,0.01152,87035.0,87029.0,0.19460042]
[1766592024155,0.01097,87035.0,87029.0,0.19460042]
[1766592024372,0.01097,87035.0,87029.0,0.18311]
[1766592024574,0.01097,87035.0,87024.0,0.01149108]
[1766592024779,0.18938,87035.0,87025.0,0.01149095]
[1766592025184,0.05748,87034.0,87025.0,0.01149095]
[1766592025724,0.05748,87034.0,87024.0,0.06894585]
[1766592026090,0.05748,87034.0,87021.0,0.01149147]
[1766592026091,0.000549,87024.0,87021.0,0.01149147]
[1766592026267,0.01152,87023.0,87021.0,0.01149147]
[1766592026601,0.01152,87023.0,87020.0,0.01149161]
[1766592026771,0.01152,87023.0,87013.0,0.2414391]
[1766592026936,0.01152,87023.0,87020.0,0.06894956]
[1766592027337,0.01152,87023.0,87021.0,0.05745727]
[1766592027560,0.01152,87022.0,87020.0,0.01149161]
[1766592027921,0.01148989,87033.0,87021.0,0.05745739]
[1766592028179,0.06897002,87032.0,87021.0,0.01149147]
[1766592028380,0.01149015,87031.0,87019.0,0.06895037]
[1766592028570,0.01149015,87031.0,87020.0,0.01149161]
[1766592028730,0.22116,87032.0,87021.0,0.01149147]
[1766592028930,0.22116,87032.0,87023.0,0.01149121]
[1766592029180,0.22116,87032.0,87023.0,0.06894727]